bitfinex/quotes_BTCUSD_20251120
["timestamp","ask_amount","ask_price","bid_price","bid_amount"]
[1763661681373,0.01800436,87194.0,87157.0,0.05210249]
[1763661681573,0.01812978,87194.0,87171.0,0.323]
[1763661681727,0.01801144,87213.0,87182.0,0.05210249]
[1763661681932,0.00041789,87213.0,87193.0,0.01223]
[1763661682131,0.00041789,87213.0,87200.0,0.77716385]
[1763661682341,0.00041789,87213.0,87201.0,0.323]
[1763661682541,0.0002,87220.0,87202.0,0.05210249]
[1763661682753,0.0002,87240.0,87219.0,0.01223]
[1763661683316,0.77736385,87240.0,87219.0,0.01223]
[1763661683754,0.77736385,87240.0,87210.0,0.01223]
[1763661683755,0.001,87213.0,87210.0,0.01223]
[1763661684158,0.001,87213.0,87211.0,0.02367]
[1763661684370,0.77736385,87240.0,87210.0,0.01223]
[1763661684371,0.77716385,87230.0,87210.0,0.01223]
[1763661684577,3.0,87239.0,87202.0,0.00041789]
[1763661684578,0.77716385,87220.0,87202.0,0.00041789]
[1763661685603,0.77716385,87190.0,87160.0,0.01223]
[1763661685808,0.00041789,87204.0,87161.0,0.02367]
[1763661685809,0.77716385,87200.0,87161.0,0.02367]
[1763661686229,0.77716385,87190.0,87161.0,0.02367]
[1763661686477,0.77716385,87190.0,87161.0,0.02247955]
[1763661686893,0.01799983,87191.0,87161.0,0.02247955]
[1763661687767,0.01799983,87191.0,87162.0,0.16686957]
[1763661687978,0.01799983,87191.0,87164.0,0.05210249]
[1763661688403,0.01799983,87191.0,87166.0,0.05210249]
[1763661688621,0.01799983,87191.0,87165.0,0.34667]
[1763661688850,0.01799983,87191.0,87165.0,0.323]
[1763661689088,0.01799983,87191.0,87167.0,0.37510249]
[1763661689303,0.01799983,87191.0,87169.0,0.37510249]
[1763661689529,0.00041789,87204.0,87190.0,0.01223]
[1763661690190,0.00041789,87204.0,87169.0,0.37510249]
[1763661690425,0.00041789,87204.0,87168.0,0.08365396]
[1763661690426,0.00041789,87204.0,87173.0,0.02405]
[1763661690648,0.00041789,87204.0,87161.0,0.05210249]
[1763661690868,0.0023989,87174.0,87163.0,0.37510249]
[1763661691080,0.323,87209.0,87164.0,0.01376715]
[1763661691312,0.01799635,87214.0,87164.0,0.01376715]
[1763661691313,0.323,87207.0,87166.0,0.05210249]
[1763661691538,0.02126423,87206.0,87168.0,0.05210249]
[1763661691752,0.02126423,87206.0,87169.0,0.40143162]
[1763661691970,0.02126423,87206.0,87169.0,0.42548162]
[1763661692200,0.00041789,87206.0,87205.0,0.01145]
[1763661692410,0.00041789,87206.0,87186.0,0.05210249]
[1763661692646,0.00041789,87206.0,87188.0,0.05210249]
[1763661692920,0.00041789,87206.0,87190.0,0.37510249]
[1763661693410,0.0002,87240.0,87206.0,0.37510249]
[1763661693635,0.00032534,87240.0,87207.0,0.02499]
[1763661694319,0.00032534,87240.0,87196.0,0.05210249]
[1763661694320,3.0,87239.0,87196.0,0.05210249]
[1763661694540,3.0,87235.0,87197.0,0.00780925]
[1763661694756,0.00032534,87240.0,87199.0,0.37510249]
[1763661694974,0.01799377,87226.0,87199.0,0.323]
[1763661695445,0.323,87236.0,87193.0,0.02499]
[1763661695681,0.02122982,87235.0,87193.0,0.02499]
[1763661695911,0.57035714,87240.0,87193.0,0.01376257]
[1763661695912,0.00032534,87240.0,87193.0,0.01376257]
[1763661696117,0.00032534,87240.0,87174.0,0.01376557]
[1763661696118,0.323,87207.0,87174.0,0.01376557]
[1763661696332,0.323,87203.0,87174.0,0.01376557]
[1763661696545,0.323,87201.0,87174.0,0.01376557]
[1763661696754,0.323,87201.0,87166.0,0.02499]
[1763661696988,0.323,87199.0,87160.0,0.01223]
[1763661697217,0.00243029,87175.0,87139.0,0.01245]
[1763661697438,0.323,87171.0,87160.0,0.00041789]
[1763661697638,3.0,87177.0,87160.0,0.00041789]
[1763661697850,0.5700318,87180.0,87160.0,0.00041789]
[1763661697851,0.00199078,87161.0,87160.0,0.00041789]
[1763661701313,0.02324979,87161.0,87160.0,0.00041789]
[1763661701519,0.01147381,87155.0,87115.0,0.01245]
[1763661701683,0.323,87160.0,87115.0,0.01245]
[1763661701684,0.323,87149.0,87115.0,0.01257542]
[1763661701880,0.02125901,87148.0,87116.0,0.03876473]
[1763661702084,3.0,87167.0,87116.0,0.02499]
[1763661702281,0.323,87164.0,87117.0,0.02499]
[1763661702541,0.323,87159.0,87119.0,0.05210249]
[1763661702745,0.001,87155.0,87120.0,0.0137741]
[1763661702942,0.001,87155.0,87120.0,0.0387641]
[1763661703347,0.02129861,87154.0,87120.0,0.0137741]
[1763661703550,0.02129861,87153.0,87120.0,0.02499]
[1763661703852,0.02129861,87152.0,87121.0,0.06715347]
[1763661704058,0.01800858,87145.0,87121.0,0.02499]
[1763661704260,0.01800858,87145.0,87115.0,0.01257542]
[1763661704474,0.01800858,87145.0,87116.0,0.02499]
[1763661704884,0.02131338,87144.0,87115.0,0.01257542]
[1763661705029,0.01800858,87145.0,87115.0,0.01257542]
[1763661705030,0.323,87141.0,87115.0,0.01257542]
[1763661705230,0.02131338,87140.0,87115.0,0.01257542]
[1763661705456,0.02131338,87139.0,87115.0,0.00012542]
[1763661705682,0.02131338,87138.0,87115.0,0.00012542]
[1763661705873,0.02131338,87137.0,87115.0,0.00012542]
[1763661706151,0.02131338,87136.0,87115.0,0.00012542]
[1763661706384,0.02131338,87135.0,87115.0,0.00012542]
[1763661706606,0.01800858,87145.0,87115.0,0.00012542]
[1763661706812,0.323,87141.0,87115.0,0.00012542]
[1763661707038,0.02131473,87140.0,87115.0,0.00012542]
[1763661708516,0.323,87138.0,87115.0,0.00012542]
[1763661708733,0.02131473,87137.0,87115.0,0.00012542]
[1763661708932,0.02131473,87136.0,87115.0,0.00012542]
[1763661709179,0.02131473,87135.0,87115.0,0.00012542]
[1763661709380,0.001,87141.0,87115.0,0.00012542]
[1763661709536,0.01800858,87145.0,87115.0,0.00012542]
[1763661709537,0.02129698,87140.0,87115.0,0.00012542]
[1763661709745,0.0180127,87131.0,87115.0,0.00012542]
[1763661709941,0.0180127,87131.0,87116.0,0.02499]
[1763661710165,0.0180127,87131.0,87130.0,0.01245]
[1763661710367,0.0180127,87131.0,87116.0,0.02499]
[1763661710569,0.0180127,87131.0,87115.0,0.00012542]
[1763661711541,0.323,87128.0,87115.0,0.00012542]
[1763661711810,0.0180127,87131.0,87115.0,0.00012542]
[1763661711811,0.323,87123.0,87115.0,0.00012542]
[1763661712011,0.323,87119.0,87115.0,0.00012542]
[1763661712237,3.0,87117.0,87115.0,0.00012542]
[1763661712431,3.34427539,87116.0,87115.0,0.00012542]
[1763661712605,0.34427539,87116.0,87115.0,0.00012542]
[1763661712808,0.02127539,87116.0,87115.0,0.00012542]
[1763661713007,0.323,87129.0,87115.0,0.00012542]
[1763661713201,0.0180127,87131.0,87115.0,0.00012542]
[1763661713202,0.323,87125.0,87115.0,0.00012542]
[1763661713397,0.02126514,87124.0,87115.0,0.00012542]
[1763661713597,3.0,87123.0,87115.0,0.00012542]
[1763661713797,0.323,87125.0,87115.0,0.00012542]
[1763661713798,3.0,87121.0,87115.0,0.00012542]
[1763661713995,0.02126514,87120.0,87115.0,0.00012542]
[1763661714227,0.01801596,87120.0,87115.0,0.00012542]
[1763661715118,0.0180127,87131.0,87115.0,0.00012542]
[1763661717035,0.0190127,87131.0,87116.0,0.02499]
[1763661717234,0.0190127,87131.0,87130.0,0.02749]
[1763661717455,0.0190127,87131.0,87130.0,0.01245]
[1763661717793,0.0180127,87131.0,87130.0,0.01245]
[1763661718202,0.0180127,87131.0,87115.0,0.00012542]
[1763661718666,0.0190127,87131.0,87115.0,0.00012542]
[1763661719507,0.0190127,87131.0,87116.0,0.00772179]
[1763661719872,0.01801117,87138.0,87115.0,0.02511542]
[1763661719873,0.01801117,87138.0,87117.0,0.03876457]
[1763661720274,0.01801117,87138.0,87115.0,0.00012542]
[1763661720477,3.0,87137.0,87115.0,0.00012542]
[1763661720744,0.01147723,87129.0,87115.0,0.00012542]
[1763661720869,0.323,87130.0,87105.0,0.00025153]
[1763661720870,0.01147894,87116.0,87105.0,0.00025153]
[1763661721078,0.323,87107.0,87070.0,0.0004]
[1763661721303,3.0,87103.0,87070.0,0.0004]
[1763661721505,0.00041745,87107.0,87071.0,0.02499]
[1763661721506,0.01064835,87102.0,87071.0,0.02499]
[1763661721709,0.323,87105.0,87072.0,0.01378169]
[1763661722138,0.00041745,87107.0,87073.0,0.02499]
[1763661722337,0.00041745,87107.0,87070.0,0.0004]
[1763661722338,3.0,87104.0,87070.0,0.0004]
[1763661722536,0.323,87101.0,87070.0,0.0004]
[1763661722739,3.0,87099.0,87070.0,0.0004]
[1763661722938,0.00041745,87107.0,87072.0,0.05210249]
[1763661723140,0.01801938,87093.0,87074.0,0.05210249]
[1763661723321,0.00041745,87107.0,87076.0,0.05210249]
[1763661723322,0.001,87103.0,87076.0,0.05210249]
[1763661723529,0.001,87103.0,87075.0,0.01378122]
[1763661723530,0.001,87103.0,87088.0,0.37510249]
[1763661723531,0.00058,87103.0,87088.0,0.37510249]
[1763661723755,0.04111809,87167.0,87087.0,0.11476708]
[1763661723756,3.0,87159.0,87107.0,0.05210249]
[1763661723983,0.5700318,87180.0,87109.0,0.05210249]
[1763661723984,0.01801212,87152.0,87109.0,0.05210249]
[1763661724203,0.323,87149.0,87111.0,0.05210249]
[1763661724429,3.0,87147.0,87112.0,0.00882578]
[1763661724670,0.5700318,87160.0,87108.0,0.02379]
[1763661724671,0.01066237,87146.0,87114.0,0.05210249]
[1763661724916,0.01066237,87145.0,87116.0,0.05210249]
[1763661725139,0.01066237,87145.0,87113.0,0.01377521]
[1763661725140,0.01066237,87144.0,87114.0,0.05210249]
[1763661725371,3.0,87142.0,87095.0,0.04104798]
[1763661725608,0.01147381,87155.0,87081.0,0.08141952]
[1763661725609,0.323,87139.0,87101.0,0.01224]
[1763661725836,0.01066237,87138.0,87102.0,0.01377695]
[1763661726065,0.01066237,87137.0,87107.0,0.03769146]
[1763661726281,3.0,87135.0,87107.0,0.0103287]
[1763661726499,3.323,87132.0,87107.0,0.0001253]
[1763661726709,0.323,87127.0,87107.0,0.0001253]
[1763661726917,0.323,87124.0,87107.0,0.0001253]
[1763661727132,0.323,87122.0,87107.0,0.0001253]
[1763661727348,3.0,87120.0,87107.0,0.0001253]
[1763661727574,0.323,87122.0,87107.0,0.0001253]
[1763661727575,3.0,87118.0,87107.0,0.0001253]
[1763661727822,3.0,87116.0,87107.0,0.0001253]
[1763661728048,3.0,87114.0,87107.0,0.0001253]
[1763661728266,0.0321012,87113.0,87107.0,0.0001253]
[1763661728463,0.0321012,87112.0,87107.0,0.0001253]
[1763661728725,0.0321012,87111.0,87107.0,0.0001253]
[1763661728921,0.0321012,87110.0,87107.0,0.0001253]
[1763661729060,0.00396,87111.0,87107.0,0.0001253]
[1763661729061,0.0321012,87109.0,87107.0,0.0001253]
[1763661729264,0.0321012,87108.0,87107.0,0.0001253]
[1763661729468,0.0321012,87108.0,87107.0,0.0239153]
[1763661729676,0.00396,87111.0,87107.0,0.0239153]
[1763661729904,0.01801522,87129.0,87111.0,0.05210249]
[1763661730108,0.01072656,87128.0,87113.0,0.05210249]
[1763661730312,0.01072656,87127.0,87113.0,0.0658777]
[1763661730640,0.001,87114.0,87113.0,0.05210249]
[1763661731086,0.00396,87131.0,87113.0,0.07589249]
[1763661731330,0.00396,87131.0,87115.0,0.05210249]
[1763661731499,0.00396,87131.0,87117.0,0.05210249]
[1763661732041,0.00396,87131.0,87116.0,0.02379]
[1763661732042,0.00396,87131.0,87119.0,0.05210249]
[1763661732380,0.00396,87131.0,87121.0,0.05210249]
[1763661732602,0.0180101,87140.0,87130.0,0.37510249]
[1763661732795,0.00489,87168.0,87131.0,0.02379]
[1763661732796,0.00396,87149.0,87131.0,0.02379]
[1763661733176,0.00396,87149.0,87132.0,0.05210249]
[1763661733601,0.00396,87149.0,87134.0,0.05210249]
[1763661733777,0.00396,87149.0,87123.0,0.323]
[1763661733976,0.00396,87149.0,87124.0,0.11477629]
[1763661734198,0.00396,87149.0,87126.0,0.05210249]
[1763661734400,0.01072359,87142.0,87125.0,0.02379]
[1763661734608,0.01072359,87141.0,87125.0,0.02379]
[1763661734814,0.00396,87149.0,87126.0,0.05210249]
[1763661735032,0.01072362,87142.0,87128.0,0.05210249]
[1763661735223,0.00396,87149.0,87128.0,0.05210249]
[1763661735396,0.00396,87149.0,87129.0,0.02379]
[1763661736150,0.01800855,87140.0,87125.0,0.0001253]
[1763661736701,0.01072044,87139.0,87125.0,0.0001253]
[1763661736907,0.01800855,87140.0,87127.0,0.05210249]
[1763661737129,0.00396,87149.0,87129.0,0.05210249]
[1763661737561,0.00396,87149.0,87131.0,0.05210249]
[1763661737983,0.00396,87149.0,87133.0,0.05210249]
[1763661737984,0.001,87140.0,87133.0,0.05210249]
[1763661738352,0.001,87140.0,87135.0,0.05210249]
[1763661738661,0.001,87140.0,87128.0,0.05210249]
[1763661738910,0.001,87140.0,87130.0,0.05210249]
[1763661739055,0.001,87140.0,87132.0,0.05210249]
[1763661739231,0.00396,87149.0,87132.0,0.05210249]
[1763661739435,0.00396,87149.0,87125.0,0.0001253]
[1763661739640,0.63368062,87180.0,87125.0,0.0001253]
[1763661739641,0.00396,87152.0,87134.0,0.05210249]
[1763661739858,0.00396,87157.0,87135.0,0.03603]
[1763661740075,0.01800749,87150.0,87135.0,0.03603]
[1763661740272,0.01800749,87150.0,87137.0,0.05210249]
[1763661740506,0.00396,87157.0,87136.0,0.02379]
[1763661740507,0.00396,87157.0,87139.0,0.37510249]
[1763661740721,0.00396,87157.0,87156.0,0.01224]
[1763661741153,0.00396,87157.0,87156.0,0.03603]
[1763661741588,0.03063512,87210.0,87157.0,0.05210249]
[1763661741793,0.03063512,87210.0,87158.0,0.00881325]
[1763661741794,0.03605989,87195.0,87158.0,0.00881325]
[1763661742003,0.03209989,87194.0,87157.0,0.02379]
[1763661742210,0.03209989,87193.0,87157.0,0.02333499]
[1763661742418,0.03209989,87192.0,87157.0,0.02333499]
[1763661742650,0.00396,87195.0,87157.0,0.07543748]
[1763661742651,0.03209989,87191.0,87157.0,0.07543748]
[1763661742853,0.03209989,87190.0,87158.0,0.49863732]
[1763661743060,0.00396,87195.0,87158.0,0.49863732]
[1763661743289,0.001,87194.0,87173.0,0.05210249]
[1763661743501,0.001,87194.0,87175.0,0.05210249]
[1763661743709,0.001,87194.0,87174.0,0.33968696]
[1763661743710,0.001,87194.0,87176.0,0.01224]
[1763661743923,0.001,87191.0,87176.0,0.01224]
[1763661744142,0.001,87191.0,87177.0,0.05210249]
[1763661744332,0.001,87191.0,87179.0,0.37510249]
[1763661744536,0.001,87191.0,87176.0,0.01224]
[1763661744537,0.01800097,87189.0,87181.0,0.37510249]
[1763661745552,0.01800097,87189.0,87181.0,0.05210249]
[1763661745757,0.01800097,87189.0,87183.0,0.05210249]
[1763661745956,0.01800097,87189.0,87183.0,0.37510249]
[1763661746177,0.00041797,87196.0,87185.0,0.05210249]
[1763661746384,0.00041797,87196.0,87195.0,0.06434249]
[1763661746927,0.00041797,87196.0,87195.0,0.08813249]
[1763661746928,0.00208219,87196.0,87195.0,0.08813249]
[1763661747717,0.00678,87238.0,87195.0,0.08813249]
[1763661747933,0.00012534,87237.0,87228.0,0.01224]
[1763661748139,0.00012534,87237.0,87228.0,0.03603]
[1763661748325,0.005995,87277.0,87232.0,0.05210249]
[1763661748495,0.00711,87280.0,87249.0,0.01224]
[1763661748496,0.00396,87274.0,87249.0,0.01224]
[1763661748882,0.00396,87274.0,87249.0,0.03603]
[1763661749100,0.01798605,87266.0,87249.0,0.03603]
[1763661749509,0.01798605,87266.0,87249.0,0.08813249]
[1763661749684,0.00396,87274.0,87249.0,0.08813249]
[1763661749887,0.0219455,87274.0,87249.0,0.08813249]
[1763661750087,0.01798589,87268.0,87249.0,0.08913249]
[1763661750924,0.46214896,87260.0,87249.0,0.001]
[1763661751161,0.03395589,87268.0,87249.0,0.001]
[1763661751360,0.323,87259.0,87249.0,0.001]
[1763661751640,0.01617,87250.0,87249.0,0.001]
[1763661751778,0.0002,87250.0,87249.0,0.002]
[1763661752183,0.0002,87250.0,87249.0,0.001]
[1763661752606,0.0002,87250.0,87237.0,0.02361]
[1763661752827,0.0002,87250.0,87239.0,0.05210249]
[1763661753031,0.0002,87250.0,87241.0,0.37510249]
[1763661753485,0.0002,87250.0,87243.0,0.05210249]
[1763661753829,0.0002,87250.0,87245.0,0.05210249]
[1763661754352,0.0002,87250.0,87242.0,0.05210249]
[1763661754353,0.00156865,87246.0,87242.0,0.05210249]
[1763661754517,0.0002,87250.0,87244.0,0.05210249]
[1763661754924,0.0002,87250.0,87245.0,0.02361]
[1763661755774,0.0002,87250.0,87246.0,0.05210249]
[1763661756182,0.0002,87250.0,87248.0,0.05210249]
[1763661756364,0.0002,87250.0,87245.0,0.323]
[1763661756564,0.0002,87250.0,87247.0,0.37510249]
[1763661757040,0.0002,87250.0,87249.0,0.37510249]
[1763661757372,0.0002,87250.0,87249.0,0.39871249]
[1763661757956,0.0002,87250.0,87249.0,0.07571249]
[1763661758447,0.0002,87250.0,87247.0,0.002]
[1763661758602,0.0002,87250.0,87247.0,0.001]
[1763661759000,0.0002,87250.0,87249.0,0.001]
[1763661759432,0.0002,87250.0,87249.0,0.002]
[1763661759638,0.01818666,87250.0,87249.0,0.002]
[1763661760067,0.01818666,87250.0,87249.0,0.02561]
[1763661760267,0.0002,87250.0,87240.0,0.05210249]
[1763661760473,0.00189406,87250.0,87241.0,0.013755]
[1763661760701,0.0002,87250.0,87240.0,0.05210249]
[1763661760947,0.0002,87250.0,87233.0,0.05210249]
[1763661761150,0.0002,87250.0,87247.0,0.001]
[1763661761664,0.0002,87250.0,87248.0,0.02361]
[1763661761825,0.0002,87250.0,87249.0,0.05210249]
[1763661762233,0.0002,87250.0,87249.0,0.03736373]
[1763661762837,0.0002,87250.0,87249.0,0.001]
[1763661763271,0.0002,87250.0,87241.0,0.02361]
[1763661763485,0.0002,87250.0,87235.0,0.323]
[1763661763707,0.0002,87250.0,87249.0,0.001]
[1763661764154,0.0002,87250.0,87226.0,0.01241]
[1763661764471,0.0002,87250.0,87241.0,0.001]
[1763661765198,0.0002,87250.0,87227.0,0.02361]
[1763661765428,0.0002,87250.0,87228.0,0.03591453]
[1763661765804,0.0002,87250.0,87228.0,0.05210249]
[1763661766015,0.46214896,87240.0,87226.0,0.00012534]
[1763661766155,0.01597,87249.0,87226.0,0.00012534]
[1763661766156,0.00886,87239.0,87226.0,0.00012534]
[1763661766561,0.323,87235.0,87226.0,0.00012534]
[1763661766786,0.323,87229.0,87186.0,0.05657621]
[1763661766993,0.46214896,87210.0,87176.0,0.01224]
[1763661767189,0.46214896,87210.0,87177.0,0.05210249]
[1763661767404,0.46214896,87210.0,87176.0,0.01224]
[1763661767565,0.01584,87212.0,87178.0,0.02361]
[1763661767770,0.46214896,87210.0,87179.0,0.01376478]
[1763661767974,0.01584,87212.0,87175.0,0.01241]
[1763661768171,0.46214896,87190.0,87175.0,0.01241]
[1763661768403,0.46214896,87190.0,87163.0,0.02361]
[1763661768404,0.00392,87189.0,87163.0,0.02361]
[1763661768579,0.00392,87189.0,87139.0,0.04104798]
[1763661768580,0.00698,87176.0,87132.0,0.02361]
[1763661768821,0.46214896,87167.0,87136.0,0.01241]
[1763661769027,0.46214896,87167.0,87128.0,0.01241]
[1763661769226,0.33884,87166.0,87128.0,0.01241]
[1763661769412,0.33884,87166.0,87157.0,0.00212535]
[1763661769789,3.0,87161.0,87157.0,0.00212535]
[1763661769999,0.00392,87160.0,87157.0,0.00212535]
[1763661770421,0.01584,87159.0,87157.0,0.00212535]
[1763661771115,0.01584,87159.0,87109.0,0.01241]
[1763661771116,0.323,87149.0,87109.0,0.01241]
[1763661771318,0.323,87147.0,87109.0,0.0001253]
[1763661771766,0.323,87159.0,87110.0,0.02361]
[1763661771980,0.01584,87146.0,87110.0,0.02361]
[1763661772186,0.03189592,87158.0,87111.0,0.01377552]
[1763661772187,0.323,87156.0,87111.0,0.01377552]
[1763661772388,0.323,87156.0,87112.0,0.05210249]
[1763661772509,0.323,87156.0,87114.0,0.05210249]
[1763661772510,0.00392,87155.0,87114.0,0.05210249]
[1763661772717,0.00392,87154.0,87116.0,0.05210249]
[1763661772940,0.00392,87154.0,87118.0,0.05210249]
[1763661773143,0.01800869,87156.0,87127.0,0.37510249]
[1763661773346,0.00392,87155.0,87129.0,0.37510249]
[1763661773547,0.00392,87155.0,87131.0,0.05210249]
[1763661773762,0.00392,87155.0,87133.0,0.05210249]
[1763661774085,0.001,87154.0,87132.0,0.323]
[1763661774287,0.00392,87153.0,87135.0,0.05210249]
[1763661774493,0.00698,87176.0,87133.0,0.15214912]
[1763661774494,0.00392,87152.0,87137.0,0.37510249]
[1763661774674,0.00392,87156.0,87139.0,0.05210249]
[1763661774872,0.00392,87160.0,87141.0,0.05210249]
[1763661775124,0.00392,87160.0,87148.0,0.37510249]
[1763661775356,0.00392,87160.0,87159.0,0.01241]
[1763661775545,0.00392,87160.0,87159.0,0.06451249]
[1763661775849,0.00392,87178.0,87160.0,0.05210249]
[1763661776026,0.00433745,87178.0,87162.0,0.05210249]
[1763661776268,0.00433745,87178.0,87159.0,0.03602]
[1763661776269,0.00698,87177.0,87159.0,0.01241]
[1763661776480,0.00698,87177.0,87153.0,0.05210249]
[1763661777062,0.00041745,87178.0,87155.0,0.37510249]
[1763661777304,0.00041745,87178.0,87155.0,0.323]
[1763661777695,0.00041745,87178.0,87156.0,0.4124809]
[1763661777922,0.00041745,87178.0,87153.0,0.05210249]
[1763661778132,0.00041745,87178.0,87152.0,0.01241]
[1763661778133,0.01800221,87173.0,87152.0,0.01241]
[1763661780543,0.01800221,87173.0,87153.0,0.02361]
[1763661780758,0.01800221,87173.0,87153.0,0.03737888]
[1763661780964,0.01800221,87173.0,87149.0,0.00025134]
[1763661781509,0.01800221,87173.0,87151.0,0.05210249]
[1763661781654,0.01800221,87173.0,87152.0,0.00759638]
[1763661781881,0.01800221,87173.0,87152.0,0.01241]
[1763661782380,0.01800221,87173.0,87153.0,0.02358]
[1763661782761,0.01800221,87173.0,87154.0,0.1806383]
[1763661783238,0.01800221,87173.0,87154.0,0.05210249]
[1763661783433,0.01800221,87173.0,87152.0,0.01241]
[1763661783434,0.01800221,87173.0,87153.0,0.05210249]
[1763661783651,0.01800221,87173.0,87153.0,0.07568249]
[1763661783885,0.00041745,87178.0,87163.0,0.37510249]
[1763661784107,0.00041745,87178.0,87164.0,0.03734715]
[1763661784341,0.00041745,87178.0,87177.0,0.01222]
[1763661784773,0.00041745,87178.0,87154.0,0.05210249]
[1763661784975,0.00041745,87178.0,87154.0,0.09323687]
[1763661785422,0.00041745,87178.0,87156.0,0.37510249]
[1763661785628,0.00041745,87178.0,87158.0,0.37510249]
[1763661786066,0.00041745,87178.0,87160.0,0.05210249]
[1763661786282,0.00041745,87178.0,87162.0,0.05210249]
[1763661786714,0.00041745,87178.0,87149.0,0.00025134]
[1763661786715,0.01583,87177.0,87149.0,0.00025134]
[1763661786935,3.0,87176.0,87149.0,0.00025134]
[1763661787149,0.63397531,87170.0,87149.0,0.00025134]
[1763661787350,0.63397531,87160.0,87149.0,0.00025134]
[1763661787568,0.323,87169.0,87149.0,0.00025134]
[1763661787569,0.00392,87159.0,87149.0,0.00025134]
[1763661789196,0.01583,87158.0,87149.0,0.00025134]
[1763661790188,0.00392,87159.0,87149.0,0.00025134]
[1763661790393,0.01683,87158.0,87149.0,0.00025134]
[1763661790825,0.01583,87158.0,87149.0,0.00025134]
[1763661791022,0.01683,87158.0,87149.0,0.00025134]
[1763661791222,0.03193848,87157.0,87149.0,0.00025134]
[1763661791441,0.01064616,87156.0,87149.0,0.00025134]
[1763661791652,0.01064569,87155.0,87149.0,0.00025134]
[1763661791854,0.55248938,87150.0,87149.0,0.00025134]
[1763661792075,0.33364651,87150.0,87149.0,0.00025134]
[1763661792279,0.37079215,87150.0,87149.0,0.00025134]
[1763661792629,0.37078949,87150.0,87149.0,0.00025134]
[1763661792785,0.33364651,87150.0,87149.0,0.00025134]
[1763661792983,0.34947651,87150.0,87149.0,0.00025134]
[1763661793162,0.37081476,87150.0,87149.0,0.00025134]
[1763661794013,0.03198476,87150.0,87149.0,0.00025134]
[1763661794364,0.01583,87185.0,87149.0,0.04040134]
[1763661794580,0.06167714,87201.0,87149.0,0.04040134]
[1763661794581,0.01800606,87171.0,87152.0,0.05210249]
[1763661794782,0.47936305,87200.0,87152.0,0.05210249]
[1763661794783,0.00392,87175.0,87170.0,0.01222]
[1763661794992,0.00041745,87175.0,87171.0,0.05210249]
[1763661795207,0.00041745,87175.0,87173.0,0.37510249]
[1763661795609,0.00041745,87175.0,87170.0,0.01222]
[1763661796218,0.00041745,87175.0,87162.0,0.323]
[1763661796628,0.00041745,87175.0,87163.0,0.02358]
[1763661796835,0.00041745,87175.0,87163.0,0.0373473]
[1763661797046,0.00041745,87175.0,87170.0,0.001]
[1763661797471,0.00041745,87175.0,87174.0,0.323]
[1763661797684,0.00041745,87175.0,87174.0,0.37510249]
[1763661797898,0.00041745,87175.0,87163.0,0.001]
[1763661799159,0.00041745,87175.0,87163.0,0.0383473]
[1763661799371,0.00041745,87175.0,87174.0,0.001]
[1763661799798,0.00041745,87175.0,87174.0,0.07668249]
[1763661800006,0.00041745,87175.0,87174.0,0.07568249]
[1763661800458,0.00041745,87175.0,87174.0,0.05210249]
[1763661800658,0.00041745,87175.0,87174.0,0.07568249]
[1763661800830,0.00041745,87175.0,87174.0,0.07668249]
[1763661801048,0.00041745,87175.0,87174.0,0.07768249]
[1763661801337,0.00041745,87175.0,87174.0,0.08545074]
[1763661801970,0.001707,87196.0,87174.0,0.08545074]
[1763661801971,0.001707,87196.0,87175.0,0.05210249]
[1763661802182,0.00183215,87196.0,87195.0,0.06432249]
[1763661802592,0.00183215,87196.0,87195.0,0.08790249]
[1763661803016,0.00392,87225.0,87196.0,0.37510249]
[1763661803230,0.00392,87225.0,87198.0,0.37510249]
[1763661803231,0.0321049,87224.0,87198.0,0.37510249]
[1763661803459,0.00012529,87225.0,87224.0,0.01222]
[1763661803662,0.00012529,87225.0,87211.0,0.05210249]
[1763661804042,0.00012529,87225.0,87205.0,0.05210249]
[1763661804244,0.00012529,87225.0,87198.0,0.02358]
[1763661804444,0.03206567,87224.0,87196.0,0.05210249]
[1763661804657,0.00012529,87225.0,87196.0,0.05210249]
[1763661804658,0.02498499,87223.0,87196.0,0.05210249]
[1763661804923,0.00885,87197.0,87195.0,0.001]
[1763661805128,0.00392,87196.0,87195.0,0.001]
[1763661805355,0.02530331,87196.0,87195.0,0.001]
[1763661805769,0.02530331,87196.0,87159.0,0.0358]
[1763661805770,0.03415331,87196.0,87159.0,0.0358]
[1763661805973,0.77610685,87190.0,87159.0,0.0358]
[1763661806093,0.02138331,87189.0,87160.0,0.02358]
[1763661806294,0.01277,87196.0,87160.0,0.02358]
[1763661806295,0.02138331,87188.0,87161.0,0.06587011]
[1763661806569,0.01277,87196.0,87160.0,0.02358]
[1763661806570,0.00392,87187.0,87162.0,0.01020876]
[1763661806775,0.001,87196.0,87171.0,0.05210249]
[1763661807009,0.00885,87208.0,87171.0,0.05210249]
[1763661807010,0.00392,87200.0,87173.0,0.05210249]
[1763661807159,0.00392,87200.0,87172.0,0.03734588]
[1763661807160,0.00392,87200.0,87181.0,0.37510249]
[1763661807363,0.00885,87222.0,87199.0,0.01222]
[1763661807572,0.00392,87221.0,87199.0,0.01222]
[1763661808680,0.0002511,87204.0,87199.0,0.01222]
[1763661809460,0.0002511,87204.0,87201.0,0.05210249]
[1763661809871,0.0002511,87204.0,87203.0,0.05210249]
[1763661810341,0.01799361,87235.0,87220.0,0.01241]
[1763661810559,0.01799361,87235.0,87221.0,0.37510249]
[1763661810560,0.01811893,87235.0,87221.0,0.37510249]
[1763661810768,0.01811893,87235.0,87221.0,0.05210249]
[1763661810769,0.00012532,87235.0,87221.0,0.05210249]
[1763661811046,0.00012532,87235.0,87220.0,0.01241]
[1763661811255,0.00012532,87235.0,87212.0,0.05210249]
[1763661811666,0.00392,87213.0,87203.0,0.002]
[1763661812971,0.00392,87214.0,87203.0,0.002]
[1763661813178,0.00392,87214.0,87200.0,0.05210249]
[1763661813806,0.00392,87214.0,87188.0,0.05210249]
[1763661814438,0.00392,87214.0,87213.0,0.01178]
[1763661814645,0.00396,87232.0,87214.0,0.05210249]
[1763661814873,0.00396,87232.0,87215.0,0.02351]
[1763661815089,0.00012532,87235.0,87215.0,0.02351]
[1763661815090,0.00012532,87235.0,87232.0,0.05210249]
[1763661815306,0.0002,87250.0,87232.0,0.05210249]
[1763661815512,0.0002,87250.0,87241.0,0.37510249]